fUST/lending_fUST_20240827
["ID","MTS","AMOUNT","RATE_DAILY","PERIOD"]
[336314664,1724773846701,-500.0,0.00010958,2]
[336314665,1724773846710,-500.0,0.00010958,2]
[336314666,1724773846720,-991.43,0.00010958,2]
[336314667,1724773846730,-500.0,0.00010958,2]
[336314668,1724773846739,-500.0,0.00010958,2]
[336314669,1724773846748,-500.0,0.00010958,2]
[336314670,1724773846759,-500.0,0.00010958,2]
[336314671,1724773846768,-500.0,0.00010958,2]
[336314672,1724773846777,-500.0,0.00010958,2]
[336314673,1724773846787,-500.0,0.00010958,2]
[336314674,1724773846797,-500.0,0.00010958,2]
[336314675,1724773846807,-500.0,0.00010958,2]
[336314676,1724773846817,-1126.06,0.00010958,2]
[336314677,1724773846826,-500.86828693,0.00010958,2]
[336314678,1724773846836,-500.0,0.00010958,2]
[336314679,1724773846848,-500.0,0.00010958,2]
[336314680,1724773846858,-962.71,0.00010958,2]
[336314681,1724773846868,-500.0,0.00010958,2]
[336314682,1724773846878,-500.0,0.00010958,2]
[336314683,1724773846888,-500.0,0.00010958,2]
[336314684,1724773846903,-500.0,0.00010958,2]
[336314685,1724773846913,-620.06,0.00010958,2]
[336314686,1724773846925,-500.0,0.00010958,2]
[336314687,1724773846937,-500.0,0.00010958,2]
[336314688,1724773846946,-500.0,0.00010958,2]
[336314689,1724773846957,-622.4,0.00010958,2]
[336314690,1724773846967,-500.0,0.00010958,2]
[336314691,1724773846978,-500.0,0.00010958,2]
[336314692,1724773846988,-500.0,0.00010958,2]
[336314693,1724773846997,-506.69225657,0.00010958,2]
[336314694,1724773847007,-500.0,0.00010958,2]
[336314695,1724773847017,-500.0,0.00010958,2]
[336314696,1724773847026,-500.0,0.00010958,2]
[336314697,1724773847037,-500.0,0.00010958,2]
[336314698,1724773847046,-500.0,0.00010958,2]
[336314699,1724773847056,-500.0,0.00010958,2]
[336314700,1724773847066,-589.14641221,0.00010958,2]
[336314701,1724773847076,-500.0,0.00010958,2]
[336314702,1724773847086,-500.0,0.00010958,2]
[336314704,1724773847098,-500.0,0.00010958,2]
[336314706,1724773847107,-500.0,0.00010958,2]
[336314707,1724773847116,-500.0,0.00010958,2]
[336314709,1724773847125,-500.0,0.00010958,2]
[336314711,1724773847135,-500.0,0.00010958,2]
[336314714,1724773847144,-500.0,0.00010958,2]
[336314716,1724773847154,-500.0,0.00010958,2]
[336314718,1724773847163,-500.0,0.00010958,2]
[336314720,1724773847173,-500.0,0.00010958,2]
[336314722,1724773847183,-324.64752503,0.00010958,2]
[336314724,1724773847193,-500.0,0.00010958,2]
[336314726,1724773847202,-500.0,0.00010958,2]
[336314728,1724773847212,-500.0,0.00010958,2]
[336314730,1724773847221,-2196.46,0.00010958,2]
[336314732,1724773847231,-500.0,0.00010958,2]
[336314734,1724773847240,-530.74,0.00010958,2]
[336314736,1724773847252,-500.0,0.00010958,2]
[336314738,1724773847262,-500.0,0.00010958,2]
[336314740,1724773847272,-500.0,0.00010958,2]
[336314743,1724773847284,-500.0,0.00010958,2]
[336314745,1724773847295,-505.46494139,0.00010958,2]
[336314747,1724773847304,-154.14502851,0.00010958,2]
[336314749,1724773847316,-500.0,0.00010958,2]
[336314751,1724773847326,-500.0,0.00010958,2]
[336314753,1724773847336,-500.0,0.00010958,2]
[336314756,1724773847351,-500.0,0.00010958,2]
[336314758,1724773847361,-500.0,0.00010958,2]
[336314760,1724773847371,-500.0,0.00010958,2]
[336314762,1724773847381,-500.0,0.00010958,2]
[336314764,1724773847390,-500.0,0.00010958,2]
[336314766,1724773847402,-500.0,0.00010958,2]
[336314768,1724773847413,-500.0,0.00010958,2]
[336314770,1724773847423,-500.0,0.00010958,2]
[336314772,1724773847433,-500.0,0.00010958,2]
[336314774,1724773847442,-500.0,0.00010958,2]
[336314776,1724773847452,-316.24143331,0.00010958,2]
[336314778,1724773847462,-500.0,0.00010958,2]
[336314780,1724773847472,-500.0,0.00010958,2]
[336314782,1724773847482,-500.0,0.00010958,2]
[336314783,1724773847494,-2867.7,0.00010958,2]
[336314784,1724773847504,-1430.55,0.00010958,2]
[336314785,1724773847515,-500.0,0.00010958,2]
[336314786,1724773847527,-13704.62,0.00010958,2]
[336314787,1724773847537,-500.0,0.00010958,2]
[336314788,1724773847548,-500.0,0.00010958,2]
[336314789,1724773847558,-500.0,0.00010958,2]
[336314790,1724773847569,-500.0,0.00010958,2]
[336314791,1724773847579,-500.0,0.00010958,2]
[336314792,1724773847591,-500.0,0.00010958,2]
[336314793,1724773847600,-500.0,0.00010958,2]
[336314794,1724773847609,-500.0,0.00010958,2]
[336314796,1724773847619,-500.0,0.00010958,2]
[336314798,1724773847629,-500.0,0.00010958,2]
[336314800,1724773847641,-634.03,0.00010958,2]
[336314802,1724773847652,-2678.27,0.00010958,2]
[336314804,1724773847662,-500.0,0.00010958,2]
[336314806,1724773847672,-500.0,0.00010958,2]
[336314808,1724773847682,-500.0,0.00010958,2]
[336314811,1724773847691,-500.0,0.00010958,2]
[336314813,1724773847701,-500.0,0.00010958,2]
[336314815,1724773847712,-500.0,0.00010958,2]
[336314817,1724773847721,-500.0,0.00010958,2]
[336314819,1724773847731,-500.0,0.00010958,2]
[336314821,1724773847740,-500.0,0.00010958,2]
[336314823,1724773847750,-500.0,0.00010958,2]
[336314825,1724773847760,-500.0,0.00010958,2]
[336314827,1724773847770,-207.0,0.00010958,2]
[336314829,1724773847780,-500.0,0.00010958,2]
[336314831,1724773847790,-501.47420812,0.00010958,2]
[336314833,1724773847800,-500.0,0.00010958,2]
[336314835,1724773847809,-1207.77,0.00010958,2]
[336314837,1724773847818,-500.0,0.00010958,2]
[336314839,1724773847828,-500.0,0.00010958,2]
[336314841,1724773847838,-500.0,0.00010958,2]
[336314844,1724773847851,-500.0,0.00010958,2]
[336314846,1724773847861,-500.0,0.00010958,2]
[336314848,1724773847871,-500.0,0.00010958,2]
[336314850,1724773847882,-500.0,0.00010958,2]
[336314852,1724773847893,-500.0,0.00010958,2]
[336314854,1724773847907,-541.54,0.00010958,2]
[336314856,1724773847918,-500.0,0.00010958,2]
[336314858,1724773847928,-500.0,0.00010958,2]
[336314860,1724773847937,-500.0,0.00010958,2]
[336314862,1724773847947,-443.15499385,0.00010958,2]
[336314864,1724773847957,-500.0,0.00010958,2]
[336314866,1724773847966,-500.0,0.00010958,2]
[336314868,1724773847977,-500.0,0.00010958,2]
[336314870,1724773847988,-500.0,0.00010958,2]
[336314872,1724773847998,-500.0,0.00010958,2]
[336314875,1724773848008,-500.0,0.00010958,2]
[336314877,1724773848019,-500.0,0.00010958,2]
[336314879,1724773848028,-500.0,0.00010958,2]
[336314881,1724773848038,-623.33,0.00010958,2]
[336314883,1724773848048,-500.0,0.00010958,2]
[336314885,1724773848059,-500.0,0.00010958,2]
[336314887,1724773848069,-500.0,0.00010958,2]
[336314889,1724773848079,-500.0,0.00010958,2]
[336314891,1724773848090,-547.04,0.00010958,2]
[336314893,1724773848100,-500.0,0.00010958,2]
[336314895,1724773848109,-156.9015561,0.00010958,2]
[336314897,1724773848118,-500.0,0.00010958,2]
[336314899,1724773848127,-500.0,0.00010958,2]
[336314901,1724773848136,-1507.1,0.00010958,2]
[336314903,1724773848145,-500.0,0.00010958,2]
[336314905,1724773848154,-500.0,0.00010958,2]
[336314907,1724773848164,-417.61929196,0.00010958,2]
[336314909,1724773848173,-500.0,0.00010958,2]
[336314911,1724773848183,-500.0,0.00010958,2]
[336314913,1724773848192,-500.0,0.00010958,2]
[336314915,1724773848202,-500.0,0.00010958,2]
[336314917,1724773848211,-500.0,0.00010958,2]
[336314919,1724773848221,-500.0,0.00010958,2]
[336314921,1724773848230,-500.0,0.00010958,2]
[336314923,1724773848239,-500.0,0.00010958,2]
[336314925,1724773848248,-295.82340868,0.00010958,2]
[336314927,1724773848258,-574.61,0.00010958,2]
[336314928,1724773848267,-500.0,0.00010958,2]
[336314929,1724773848277,-355.44969118,0.00010958,2]
[336314930,1724773848286,-500.0,0.00010958,2]
[336314931,1724773848296,-500.0,0.00010958,2]
[336314932,1724773848305,-253.57217019,0.00010958,2]
[336314933,1724773848315,-500.0,0.00010958,2]
[336314934,1724773848324,-500.0,0.00010958,2]
[336314935,1724773848333,-500.0,0.00010958,2]
[336314937,1724773848344,-500.0,0.00010958,2]
[336314939,1724773848354,-500.0,0.00010958,2]
[336314941,1724773848365,-500.0,0.00010958,2]
[336314943,1724773848375,-500.0,0.00010958,2]
[336314945,1724773848385,-500.0,0.00010958,2]
[336314947,1724773848395,-500.0,0.00010958,2]
[336314949,1724773848404,-500.0,0.00010958,2]
[336314951,1724773848414,-500.0,0.00010958,2]
[336314953,1724773848424,-500.0,0.00010958,2]
[336314955,1724773848433,-500.0,0.00010958,2]
[336314957,1724773848443,-500.0,0.00010958,2]
[336314959,1724773848453,-500.0,0.00010958,2]
[336314961,1724773848463,-500.0,0.00010958,2]
[336314964,1724773848474,-697.757032,0.00010959,2]
[336314966,1724773848484,-333.59,0.00010959,2]
[336314968,1724773848493,-1945.99,0.00010959,2]
[336314970,1724773848502,-1621.66,0.00010959,2]
[336314972,1724773848512,-1351.38,0.00010959,2]
[336314974,1724773848521,-1126.15,0.00010959,2]
[336314976,1724773848531,-938.46,0.00010959,2]
[336314977,1724773848541,-782.05,0.00010959,2]
[336314979,1724773848551,-651.71,0.00010959,2]
[336314980,1724773848560,-543.09,0.00010959,2]
[336314982,1724773848570,-452.58,0.00010959,2]
[336314983,1724773848580,-377.15,0.00010959,2]
[336314985,1724773848589,-314.29,0.00010959,2]
[336314987,1724773848599,-261.91,0.00010959,2]
[336314988,1724773848610,-168.06430931,0.00010973,2]
[336314990,1724773848619,-167.27321354,0.00010973,2]
[336314991,1724773848629,-500.0,0.00010973,2]
[336314993,1724773848638,-500.0,0.00010973,2]
[336314994,1724773848647,-500.0,0.00010973,2]
[336314996,1724773848657,-500.0,0.00010973,2]
[336314998,1724773848667,-450.33286961,0.00010973,2]
[336314999,1724773848676,-500.0,0.00010973,2]
[336315001,1724773848686,-500.0,0.00010973,2]
[336315003,1724773848695,-330.42205415,0.00010973,2]
[336315004,1724773848704,-225.08457133,0.00010973,2]
[336315006,1724773848714,-500.0,0.00010973,2]
[336315008,1724773848724,-154.72922386,0.00011046,2]
[336315009,1724773848734,-4897.84261285,0.00011094,2]
[336315011,1724773848743,-2491.91958186,0.00011132,2]
[336315012,1724773848752,-500.0,0.00011231,2]
[336315014,1724773848761,-500.0,0.00011231,2]
[336315016,1724773848770,-500.0,0.00011231,2]
[336315017,1724773848779,-500.0,0.00011231,2]
[336315019,1724773848788,-500.0,0.00011231,2]
[336315021,1724773848798,-500.0,0.00011231,2]
[336315022,1724773848808,-39682.20871313,0.00011232,5]
[336315041,1724773849054,-2172.62489123,0.00011232,5]
[336315043,1724773849065,-8738.19440988,0.00011232,5]
[336315044,1724773849075,-501.2984766,0.00011232,2]
[336315046,1724773849084,-187.74711352,0.00011232,2]
[336315101,1724773849776,-500.0,0.00010958,2]
[336315103,1724773849786,-500.0,0.00010958,2]
[336315105,1724773849796,-500.0,0.00011231,2]
[336315106,1724773849807,-311.32532695,0.00011231,2]
[336315107,1724773849816,-312.25288648,0.00011232,2]
[336315108,1724773849825,-500.0,0.00011232,2]
[336315109,1724773849835,-500.0,0.00011232,2]
[336315110,1724773849846,-500.0,0.00011232,2]
[336315111,1724773849855,-500.0,0.00011232,2]
[336315112,1724773849866,-500.0,0.00011232,2]
[336315113,1724773849876,-500.0,0.00011232,2]
[336315114,1724773849886,-500.0,0.00011232,2]
[336315115,1724773849896,-500.0,0.00011232,2]
[336315116,1724773849908,-500.0,0.00011232,2]
[336315117,1724773849918,-500.0,0.00011232,2]
[336315118,1724773849930,-500.0,0.00011232,2]
[336315119,1724773849940,-500.0,0.00011232,2]
[336315120,1724773849951,-426.49433175,0.00011232,2]
[336315121,1724773849960,-500.0,0.00011232,2]
[336315122,1724773849971,-500.0,0.00011232,2]
[336315123,1724773849984,-500.0,0.00011232,2]
[336315124,1724773849994,-500.0,0.00011232,2]
[336315125,1724773850006,-500.0,0.00011232,2]
[336315126,1724773850017,-500.0,0.00011232,2]
[336315127,1724773850029,-500.0,0.00011232,2]
[336315128,1724773850039,-500.0,0.00011232,2]
[336315129,1724773850048,-500.0,0.00011232,2]
[336315130,1724773850058,-500.0,0.00011232,2]
[336315131,1724773850067,-500.0,0.00011232,2]
[336315133,1724773850077,-500.0,0.00011232,2]
[336315134,1724773850088,-496.80838013,0.00011232,2]
[336315136,1724773850098,-500.0,0.00011232,2]
[336315137,1724773850107,-500.0,0.00011232,2]
[336315139,1724773850118,-500.0,0.00011232,2]
[336315140,1724773850127,-500.0,0.00011232,2]
[336315142,1724773850137,-500.0,0.00011232,2]
[336315144,1724773850146,-500.0,0.00011232,2]
[336315147,1724773850157,-500.0,0.00011232,2]
[336315149,1724773850166,-500.0,0.00011232,2]
[336315151,1724773850176,-500.0,0.00011232,2]
[336315153,1724773850188,-500.0,0.00011232,2]
[336315155,1724773850197,-422.87158589,0.00011232,2]
[336315209,1724773850719,-523.66365429,9.335e-05,2]
[336319149,1724774275858,-4460.0815425,7.381e-05,2]
[336319150,1724774275883,-2309.95872729,7.411e-05,2]
[336319151,1724774275910,-300.0,7.486e-05,2]
[336319152,1724774275934,-300.0,7.486e-05,2]
[336319153,1724774275956,-24900.0,7.487e-05,2]
[336319154,1724774275979,-801.01741394,7.911e-05,2]
[336319155,1724774276002,-420.0,8.235e-05,2]
[336319156,1724774276025,-420.0,8.235e-05,2]
[336319157,1724774276051,-250.0,8.38e-05,2]
[336319158,1724774276075,-250.0,8.403e-05,2]
[336319159,1724774276099,-250.0,8.426e-05,2]
[336319160,1724774276121,-250.0,8.449e-05,2]
[336319161,1724774276143,-250.0,8.472e-05,2]
[336319162,1724774276168,-250.0,8.495e-05,2]
[336319163,1724774276191,-250.0,8.518e-05,2]
[336319164,1724774276216,-42445.819165,8.521e-05,2]
[336319165,1724774276240,-22011.02494469,8.521e-05,2]
[336319166,1724774276264,-22011.02494469,8.521e-05,2]
[336319167,1724774276286,-168.06430931,8.53e-05,2]
[336319168,1724774276311,-450.33286961,8.53e-05,2]
[336319169,1724774276335,-250.0,8.541e-05,2]
[336319170,1724774276360,-250.0,8.564e-05,2]
[336319171,1724774276386,-250.0,8.587e-05,2]
[336319172,1724774276412,-250.0,8.61e-05,2]
[336319173,1724774276439,-250.0,8.633e-05,2]
[336319174,1724774276465,-250.0,8.656e-05,2]
[336319175,1724774276493,-250.0,8.679e-05,2]
[336319176,1724774276520,-250.0,8.702e-05,2]
[336319177,1724774276545,-250.0,8.725e-05,2]
[336319178,1724774276569,-250.0,8.748e-05,2]
[336319179,1724774276593,-7984.31210554,8.761e-05,2]
[336319180,1724774276618,-250.0,8.771e-05,2]
[336319181,1724774276640,-197.29835846,8.783e-05,2]
[336319182,1724774276666,-250.0,8.794e-05,2]
[336319183,1724774276693,-250.0,8.817e-05,2]
[336319184,1724774276720,-587.0,9.058e-05,2]
[336319185,1724774276743,-1125.8177556,9.178e-05,2]
[336319186,1724774276767,-654.38310238,9.335e-05,2]
[336319187,1724774276795,-5363.68109423,9.335e-05,2]
[336319188,1724774276819,-811.78467002,9.524e-05,2]
[336319189,1724774276845,-3095.19175936,9.524e-05,2]
[336319190,1724774276870,-1767.84535613,9.524e-05,2]
[336319191,1724774276898,-666.01763079,9.899e-05,2]
[336319192,1724774276921,-157.22609637,9.899e-05,2]
[336319193,1724774276944,-155.86222603,9.899e-05,2]
[336319194,1724774276970,-154.72922386,9.899e-05,2]
[336319195,1724774276996,-154.72922386,9.939e-05,2]
[336319196,1724774277017,-156.97889283,9.939e-05,2]
[336319197,1724774277043,-812.05632668,9.939e-05,2]
[336319198,1724774277065,-1500.0,9.939e-05,2]
[336319199,1724774277089,-2714.82142664,9.939e-05,2]
[336319200,1724774277110,-695.36068026,9.939e-05,2]
[336319201,1724774277132,-719.32510466,9.939e-05,2]
[336319202,1724774277155,-209.81980082,9.939e-05,2]
[336319203,1724774277179,-823.0,9.964e-05,2]
[336319204,1724774277201,-816.15735597,9.999e-05,2]
[336319205,1724774277224,-2284.37692518,9.999e-05,3]
[336319206,1724774277248,-174.9797707,9.999e-05,2]
[336319207,1724774277271,-160.57519191,9.999e-05,2]
[336319208,1724774277294,-521.10684076,9.999e-05,2]
[336319209,1724774277319,-154.74467129,9.999e-05,2]
[336319210,1724774277343,-155.1983474,9.999e-05,2]
[336319211,1724774277366,-2284.37692518,9.999e-05,3]
[336319212,1724774277390,-306.60084043,9.999e-05,2]
[336319213,1724774277419,-161.46607661,9.999e-05,2]
[336319214,1724774277441,-160.57519191,9.999e-05,2]
[336319215,1724774277464,-535.28855475,9.999e-05,2]
[336319216,1724774277488,-289.68256917,9.999e-05,2]
[336319217,1724774277511,-154.72922386,9.999e-05,2]
[336319218,1724774277535,-556.96923053,9.999e-05,2]
[336319219,1724774277558,-154.72922386,9.999e-05,2]
[336319220,1724774277580,-414.01760843,0.0001,2]
[336319221,1724774277603,-154.72922386,0.00010081,2]
[336319222,1724774277628,-8851.31811001,0.00010081,2]
[336319223,1724774277649,-154.72922386,0.00010081,2]
[336319224,1724774277672,-154.72922386,0.00010081,2]
[336319225,1724774277694,-223.66132651,0.00010081,2]
[336319226,1724774277716,-323.58073667,0.00010081,2]
[336319227,1724774277738,-196.97183292,0.00010081,2]
[336319228,1724774277764,-288.5284708,0.0001026,2]
[336319229,1724774277786,-196.97183292,0.0001026,2]
[336319230,1724774277809,-818.21912358,0.0001026,2]
[336319231,1724774277832,-818.21912358,0.0001026,2]
[336319232,1724774277854,-602.38400418,0.0001026,2]
[336319233,1724774277877,-154.74467129,0.0001026,2]
[336319234,1724774277899,-2998.9186475,0.0001026,2]
[336319235,1724774277921,-180.94079709,0.0001026,2]
[336319236,1724774277942,-301.79866319,0.00010739,2]
[336319237,1724774277964,-521.67563571,0.00010739,2]
[336319238,1724774277987,-500.0,0.00010958,2]
[336319239,1724774278009,-500.0,0.00010958,2]
[336319240,1724774278034,-500.0,0.00010958,2]
[336319241,1724774278058,-500.0,0.00010958,2]
[336319242,1724774278083,-500.0,0.00010958,2]
[336319243,1724774278111,-226.68280265,0.00010958,2]
[336319244,1724774278135,-500.0,0.00010958,2]
[336319245,1724774278161,-500.0,0.00010958,2]
[336319246,1724774278184,-500.0,0.00010958,2]
[336319247,1724774278207,-605.79887429,0.00010958,2]
[336319248,1724774278230,-500.0,0.00010958,2]
[336319249,1724774278254,-500.0,0.00010958,2]
[336319250,1724774278278,-500.0,0.00010958,2]
[336319251,1724774278302,-500.0,0.00010958,2]
[336319252,1724774278326,-500.0,0.00010958,2]
[336319253,1724774278351,-500.0,0.00010958,2]
[336319254,1724774278376,-500.0,0.00010958,2]
[336319255,1724774278400,-500.0,0.00010958,2]
[336319256,1724774278423,-500.0,0.00010958,2]
[336319257,1724774278447,-500.0,0.00010958,2]
[336319258,1724774278471,-500.0,0.00010958,2]
[336319259,1724774278495,-500.0,0.00010958,2]
[336319260,1724774278519,-500.0,0.00010958,2]
[336319261,1724774278543,-424.20044732,0.00010958,2]
[336319262,1724774278723,-500.0,0.00010958,2]
[336319263,1724774278747,-500.0,0.00010958,2]
[336319264,1724774278769,-565.39,0.00010958,2]
[336319265,1724774278792,-500.0,0.00010958,2]
[336319266,1724774278814,-500.0,0.00010958,2]
[336319267,1724774278836,-269.42153896,0.00010958,2]
[336319268,1724774278857,-500.0,0.00010958,2]
[336319269,1724774278881,-500.0,0.00010958,2]
[336319270,1724774278904,-441.05754446,0.00010958,2]
[336319271,1724774278929,-500.0,0.00010958,2]
[336319272,1724774278953,-500.0,0.00010958,2]
[336319273,1724774278976,-500.0,0.00010958,2]
[336319274,1724774279002,-500.0,0.00010958,2]
[336319275,1724774279026,-500.0,0.00010958,2]
[336319276,1724774279049,-500.0,0.00010958,2]
[336319277,1724774279073,-295.8331768,0.00010958,2]
[336319278,1724774279095,-500.0,0.00010958,2]
[336319279,1724774279120,-500.0,0.00010958,2]
[336319280,1724774279144,-500.0,0.00010958,2]
[336319281,1724774279171,-1160.68,0.00010958,2]
[336319282,1724774279196,-500.0,0.00010958,2]
[336319283,1724774279219,-500.0,0.00010958,2]
[336319284,1724774279241,-500.0,0.00010958,2]
[336319285,1724774279266,-500.0,0.00010958,2]
[336319286,1724774279290,-500.0,0.00010958,2]
[336319287,1724774279313,-500.0,0.00010958,2]
[336319288,1724774279336,-500.0,0.00010958,2]
[336319289,1724774279358,-500.0,0.00010958,2]
[336319290,1724774279383,-500.0,0.00010958,2]
[336319291,1724774279411,-500.0,0.00010958,2]
[336319292,1724774279433,-672.21,0.00010958,2]
[336319293,1724774279457,-556.85,0.00010958,2]
[336319294,1724774279479,-500.0,0.00010958,2]
[336319295,1724774279502,-500.0,0.00010958,2]
[336319296,1724774279524,-500.0,0.00010958,2]
[336319297,1724774279545,-500.0,0.00010958,2]
[336319298,1724774279566,-500.0,0.00010958,2]
[336319299,1724774279588,-500.0,0.00010958,2]
[336319300,1724774279611,-500.0,0.00010958,2]
[336319301,1724774279633,-500.0,0.00010958,2]
[336319302,1724774279655,-500.0,0.00010958,2]
[336319303,1724774279677,-500.0,0.00010958,2]
[336319304,1724774279699,-500.0,0.00010958,2]
[336319305,1724774279721,-500.0,0.00010958,2]
[336319306,1724774279743,-500.0,0.00010958,2]
[336319307,1724774279764,-500.0,0.00010958,2]
[336319308,1724774279786,-500.0,0.00010958,2]
[336319309,1724774279807,-579.28994429,0.00010958,2]
[336319310,1724774279828,-500.0,0.00010958,2]
[336319311,1724774279849,-611.6488446,0.00010958,2]
[336319312,1724774279872,-500.0,0.00010958,2]
[336319313,1724774279894,-500.0,0.00010958,2]
[336319314,1724774279918,-500.0,0.00010958,2]
[336319315,1724774279939,-500.0,0.00010958,2]
[336319316,1724774279961,-500.0,0.00010958,2]
[336319317,1724774279983,-500.0,0.00010958,2]
[336319318,1724774280005,-500.0,0.00010958,2]
[336319319,1724774280031,-500.0,0.00010958,2]
[336319320,1724774280054,-500.0,0.00010958,2]
[336319321,1724774280079,-500.0,0.00010958,2]
[336319322,1724774280103,-500.0,0.00010958,2]
[336319323,1724774280126,-500.0,0.00010958,2]
[336319324,1724774280149,-500.0,0.00010958,2]
[336319325,1724774280171,-500.0,0.00010958,2]
[336319326,1724774280194,-500.0,0.00010958,2]
[336319327,1724774280216,-500.0,0.00010958,2]
[336319328,1724774280239,-500.0,0.00010958,2]
[336319329,1724774280262,-500.0,0.00010958,2]
[336319330,1724774280285,-500.0,0.00010958,2]
[336319331,1724774280319,-501.64302261,0.00010958,2]
[336319332,1724774280356,-500.0,0.00010958,2]
[336319333,1724774280386,-500.0,0.00010958,2]
[336319334,1724774280423,-500.0,0.00010958,2]
[336319335,1724774280455,-500.0,0.00010958,2]
[336319336,1724774280485,-500.0,0.00010958,2]
[336319337,1724774280516,-500.0,0.00010958,2]
[336319338,1724774280544,-500.0,0.00010958,2]
[336319339,1724774280572,-500.0,0.00010958,2]
[336319340,1724774280601,-500.0,0.00010958,2]
[336319341,1724774280626,-500.0,0.00010958,2]
[336319342,1724774280654,-500.0,0.00010958,2]
[336319343,1724774280683,-500.0,0.00010958,2]
[336319344,1724774280714,-500.0,0.00010958,2]
[336319345,1724774280746,-500.0,0.00010958,2]
[336319346,1724774280776,-500.0,0.00010958,2]
[336319347,1724774280803,-500.0,0.00010958,2]
[336319348,1724774280830,-500.0,0.00010958,2]
[336319349,1724774280862,-500.0,0.00010958,2]
[336319350,1724774280890,-500.0,0.00010958,2]
[336319351,1724774280928,-500.0,0.00010958,2]
[336319352,1724774280956,-500.0,0.00010958,2]
[336319353,1724774280981,-555.81,0.00010958,2]
[336319354,1724774281007,-500.0,0.00010958,2]
[336319355,1724774281036,-1701.29,0.00010958,2]
[336319356,1724774281063,-500.0,0.00010958,2]
[336319357,1724774281090,-500.0,0.00010958,2]
[336319358,1724774281121,-500.0,0.00010958,2]
[336319359,1724774281147,-500.0,0.00010958,2]
[336319360,1724774281175,-500.0,0.00010958,2]
[336319361,1724774281202,-500.0,0.00010958,2]
[336319362,1724774281228,-500.0,0.00010958,2]
[336319363,1724774281255,-500.0,0.00010958,2]
[336319364,1724774281281,-500.0,0.00010958,2]
[336319365,1724774281308,-500.0,0.00010958,2]
[336319366,1724774281336,-500.0,0.00010958,2]
[336319367,1724774281365,-500.0,0.00010958,2]
[336319368,1724774281395,-500.0,0.00010958,2]
[336319369,1724774281434,-500.0,0.00010958,2]
[336319370,1724774281461,-500.0,0.00010958,2]
[336319371,1724774281487,-500.0,0.00010958,2]
[336319372,1724774281514,-500.0,0.00010958,2]
[336319373,1724774281543,-500.0,0.00010958,2]
[336319374,1724774281570,-500.0,0.00010958,2]
[336319375,1724774281599,-500.0,0.00010958,2]
[336319376,1724774281626,-500.0,0.00010958,2]
[336319377,1724774281659,-500.0,0.00010958,2]
[336319378,1724774281688,-500.0,0.00010958,2]
[336319379,1724774281714,-500.0,0.00010958,2]
[336319380,1724774281742,-500.0,0.00010958,2]
[336319381,1724774281773,-500.0,0.00010958,2]
[336319382,1724774281799,-501.58444711,0.00010958,2]
[336319383,1724774281827,-500.0,0.00010958,2]
[336319384,1724774281855,-500.0,0.00010958,2]
[336319385,1724774281880,-500.0,0.00010958,2]
[336319386,1724774281913,-500.0,0.00010958,2]
[336319387,1724774281940,-500.0,0.00010958,2]
[336319388,1724774281967,-500.0,0.00010958,2]
[336319389,1724774281995,-158.34940989,0.00010958,2]